[Event "91st GER-ch 2020"]
[Site "Magdeburg"]
[Date "2020.08.19"]
[Round "5.7"]
[White "Pfreundt, Jakob"]
[Black "Geue, Niklas"]
[Result "1/2-1/2"]
[ECO "C11"]
[WhiteElo "2397"]
[BlackElo "2050"]
[Annotator "ChessBase"]
[PlyCount "127"]
[EventDate "2020.08.16"]
[EventType "swiss"]
[EventCountry "GER"]
[SourceTitle "playchess.com"]
[Source "ChessBase"]
[SourceQuality "1"]
[TimeControl "40/5400+30:1800+30"]

1. e4 {[%emt 0:00:00]} e6 {[%emt 0:00:00]} 2. d4 {[%emt 0:00:00]} d5 {[%emt 0:00:00]} 3. Nc3 {[%emt 0:00:32]} Nf6 {[%emt 0:00:00]} 4. exd5 {[%emt 0:00:34]} exd5 {[%emt 0:00:20]} 5. Bf4 {[%emt 0:00:19]} Bd6 {[%emt 0:03:04]} 6. Qd2 {[%emt 0:00:30]} O-O {[%emt 0:06:20]} 7. O-O-O {[%emt 0:00:22]} c6 {[%emt 0:01:28]} 8. Bxd6 {[%emt 0:05:04]} Qxd6 {[%emt 0:00:10]} 9. f3 {[%emt 0:01:38]} b5 {[%emt 0:07:46]} 10. Nge2 {[%emt 0:08:41]} Ba6 {[%emt 0:10:18]} 11. Ng3 {[%emt 0:10:57]} Re8 {[%emt 0:04:01]} 12. Nf5 {[%emt 0:06:46]} Qf8 {[%emt 0:06:15]} 13. g4 {[%emt 0:08:45]} b4 {[%emt 0:08:14]} 14. Na4 {[%emt 0:00:38]} Bxf1 {[%emt 0:01:20]} 15. Rhxf1 {[%emt 0:08:12]} Nfd7 {[%emt 0:03:43]} 16. Qf4 {[%emt 0:08:28]} Na6 {[%emt 0:07:49]} 17. b3 {[%emt 0:02:31]} Re6 {[%emt 0:01:50]} 18. Nb2 {[%emt 0:02:38]} Rae8 {[%emt 0:04:50]} 19. Nd3 {[%emt 0:01:45]} g6 {[%emt 0:01:38]} 20. Nh6+ {[%emt 0:04:52]} Kg7 {[%emt 0:00:44]} 21. h4 {[%emt 0:00:52]} f6 {[%emt 0:02:46]} 22. Rg1 {[%emt 0:00:29]} Kh8 {[%emt 0:02:50]} 23. g5 {[%emt 0:00:07]} fxg5 {[%emt 0:04:27]} 24. hxg5 {[%emt 0:09:31]} Qxf4+ {[%emt 0:01:02]} 25. Nxf4 {[%emt 0:00:06]} Re3 {[%emt 0:00:23]} 26. Rd3 {[%emt 0:02:01]} Nc7 {[%emt 0:03:33]} 27. Rxe3 {[%emt 0:05:53]} Rxe3 {[%emt 0:00:04]} 28. Rf1 {[%emt 0:00:11]} Nb5 {[%emt 0:00:58]} 29. Kd2 {[%emt 0:00:05]} Re7 {[%emt 0:01:13]} 30. Kd3 {[%emt 0:01:34]} Kg7 {[%emt 0:01:15]} 31. c4 {[%emt 0:04:43]} bxc3 {[%emt 0:03:44]} 32. a4 {[%emt 0:00:50]} Nc7 {[%emt 0:01:17]} 33. Rc1 {[%emt 0:01:16]} Na6 {[%emt 0:02:05]} 34. Rxc3 {[%emt 0:00:09]} Nb4+ {[%emt 0:03:10]} 35. Kd2 {[%emt 0:00:06]} Nb8 {[%emt 0:03:00]} 36. Ng4 {[%emt 0:01:09]} Na2 {[%emt 0:02:12]} 37. Rc5 {[%emt 0:00:47]} Rb7 {[%emt 0:00:26]} 38. Rc2 {[%emt 0:01:27]} Nb4 {[%emt 0:00:21]} 39. Rc3 {[%emt 0:00:14]} Re7 {[%emt 0:01:13]} 40. Ne5 {[%emt 0:02:19]} Re8 {[%emt 0:02:38]} 41. Rc1 {[%emt 0:03:56]} Re7 {[%emt 0:02:40]} 42. Rc5 {[%emt 0:15:04]} Kf8 {[%emt 0:12:27]} 43. Rc3 {[%emt 0:06:02]} Ke8 {[%emt 0:02:23]} 44. Ng2 {[%emt 0:00:58]} Kd8 {[%emt 0:01:15]} 45. Rc1 {[%emt 0:02:56]} Kc7 {[%emt 0:00:28]} 46. Ne3 {[%emt 0:00:18]} Kd6 {[%emt 0:00:41]} 47. f4 {[%emt 0:01:01]} Nd7 {[%emt 0:01:25]} 48. N3g4 {[%emt 0:00:45]} Nf8 {[%emt 0:01:13]} 49. f5 {[%emt 0:01:40]} gxf5 {[%emt 0:03:57]} 50. Nh6 {[%emt 0:00:05]} Rb7 {[%emt 0:05:41]} 51. Nxf5+ {[%emt 0:00:14]} Ke6 {[%emt 0:00:06]} 52. Ne3 {[%emt 0:01:28]} Rc7 {[%emt 0:00:58]} 53. Rf1 {[%emt 0:01:27]} Nd7 {[%emt 0:01:30]} 54. Nxd7 {[%emt 0:03:04]} Rxd7 {[%emt 0:01:15]} 55. Rf6+ {[%emt 0:00:11]} Ke7 {[%emt 0:00:03]} 56. Ng4 {[%emt 0:01:07]} Rd6 {[%emt 0:01:37]} 57. Rxd6 {[%emt 0:00:24]} Kxd6 {[%emt 0:00:03]} 58. Nf6 {[%emt 0:00:06]} Ke6 {[%emt 0:00:12]} 59. Nxh7 {[%emt 0:00:06]} Kf5 {[%emt 0:00:02]} 60. Kc3 {[%emt 0:01:12]} Na2+ {[%emt 0:00:21]} 61. Kb2 {[%emt 0:00:04]} Nb4 {[%emt 0:00:03]} 62. Kc3 {[%emt 0:00:37]} Na2+ {[%emt 0:00:04]} 63. Kb2 {[%emt 0:00:02]} Nb4 {[%emt 0:00:04]} 64. Kc3 {[%emt 0:01:35]} 1/2-1/2

[Event "91st GER-ch 2020"]
[Site "Magdeburg"]
[Date "2020.08.19"]
[Round "5.8"]
[White "Florstedt, Johannes"]
[Black "Miller, Eduard"]
[Result "0-1"]
[ECO "B36"]
[WhiteElo "2350"]
[BlackElo "2392"]
[Annotator "ChessBase"]
[PlyCount "75"]
[EventDate "2020.08.16"]
[EventType "swiss"]
[EventCountry "GER"]
[SourceTitle "playchess.com"]
[Source "ChessBase"]
[SourceQuality "1"]
[TimeControl "40/5400+30:1800+30"]

1. e4 {[%emt 0:00:00]} c5 {[%emt 0:00:00]} 2. Nf3 {[%emt 0:00:00]} Nc6 {[%emt 0:00:00]} 3. d4 {[%emt 0:00:00]} cxd4 {[%emt 0:00:00]} 4. Nxd4 {[%emt 0:00:00]} g6 {[%emt 0:00:00]} 5. c4 {[%emt 0:00:21]} Nf6 {[%emt 0:00:00]} 6. Nc3 {[%emt 0:00:06]} d6 {[%emt 0:00:00]} 7. f3 {[%emt 0:00:49]} Bg7 {[%emt 0:00:17]} 8. Be3 {[%emt 0:00:14]} O-O {[%emt 0:00:18]} 9. Be2 {[%emt 0:01:08]} Nxd4 {[%emt 0:03:55]} 10. Bxd4 {[%emt 0:00:08]} Qa5 {[%emt 0:00:47]} 11. Qd2 {[%emt 0:02:47]} Be6 {[%emt 0:00:43]} 12. Rc1 {[%emt 0:02:12]} Rfc8 {[%emt 0:04:51]} 13. b3 {[%emt 0:03:50]} a6 {[%emt 0:00:13]} 14. f4 {[%emt 0:10:10]} Nxe4 {[%emt 0:05:06]} 15. Qe3 {[%emt 0:08:18]} Bxd4 {[%emt 0:01:47]} 16. Qxd4 {[%emt 0:00:05]} Nxc3 {[%emt 0:00:05]} 17. Rxc3 {[%emt 0:00:05]} Qxa2 {[%emt 0:02:13]} 18. h4 {[%emt 0:01:30]} Qb1+ {[%emt 0:06:00]} 19. Bd1 {[%emt 0:00:15]} Bg4 {[%emt 0:03:40]} 20. O-O {[%emt 0:01:23]} Bxd1 {[%emt 0:00:59]} 21. Rxd1 {[%emt 0:00:06]} Qf5 {[%emt 0:00:24]} 22. Re3 {[%emt 0:00:59]} Rc7 {[%emt 0:05:49]} 23. Rde1 {[%emt 0:03:30]} Re8 {[%emt 0:00:34]} 24. b4 {[%emt 0:07:09]} b5 {[%emt 0:08:13]} 25. cxb5 {[%emt 0:05:29]} axb5 {[%emt 0:00:50]} 26. Rc3 {[%emt 0:07:57]} Rxc3 {[%emt 0:01:01]} 27. Qxc3 {[%emt 0:00:05]} Qxf4 {[%emt 0:00:22]} 28. h5 {[%emt 0:00:24]} Qc4 {[%emt 0:01:26]} 29. Qd2 {[%emt 0:01:31]} d5 {[%emt 0:02:51]} 30. h6 {[%emt 0:00:16]} f6 {[%emt 0:03:29]} 31. Rc1 {[%emt 0:04:41]} Qe4 {[%emt 0:00:31]} 32. Re1 {[%emt 0:01:05]} Qf5 {[%emt 0:00:45]} 33. Ra1 {[%emt 0:03:20]} Rd8 {[%emt 0:02:44]} 34. Ra7 {[%emt 0:02:47]} Kf7 {[%emt 0:00:40]} 35. Rb7 {[%emt 0:03:05]} d4 {[%emt 0:05:50]} 36. Qe2 {[%emt 0:00:05]} Qb1+ {[%emt 0:07:15]} 37. Kh2 {[%emt 0:00:07]} Qxb4 {[%emt 0:00:05]} 38. Qa2+ {[%emt 0:00:48]} 0-1

[Event "91st GER-ch 2020"]
[Site "Magdeburg"]
[Date "2020.08.19"]
[Round "5.11"]
[White "Neurohr, Juergen"]
[Black "Andre, Gordon"]
[Result "0-1"]
[ECO "D35"]
[WhiteElo "2022"]
[BlackElo "2373"]
[Annotator "ChessBase"]
[PlyCount "54"]
[EventDate "2020.08.16"]
[EventType "swiss"]
[EventCountry "GER"]
[SourceTitle "playchess.com"]
[Source "ChessBase"]
[SourceQuality "1"]
[TimeControl "40/5400+30:1800+30"]

1. d4 {[%emt 0:00:00]} d5 {[%emt 0:00:00]} 2. c4 {[%emt 0:00:00]} e6 {[%emt 0:00:01]} 3. Nc3 {[%emt 0:00:00]} Nf6 {[%emt 0:00:12]} 4. cxd5 {[%emt 0:00:07]} exd5 {[%emt 0:00:04]} 5. Bg5 {[%emt 0:00:10]} c6 {[%emt 0:00:07]} 6. e3 {[%emt 0:00:16]} Bd6 {[%emt 0:00:38]} 7. Bd3 {[%emt 0:03:45]} O-O {[%emt 0:00:56]} 8. Qc2 {[%emt 0:04:11]} h6 {[%emt 0:00:05]} 9. Bh4 {[%emt 0:00:26]} Re8 {[%emt 0:00:20]} 10. Nge2 {[%emt 0:07:39]} a5 {[%emt 0:00:20]} 11. h3 {[%emt 0:10:06]} Na6 {[%emt 0:00:46]} 12. a3 {[%emt 0:02:20]} Nc7 {[%emt 0:01:02]} 13. Bg3 {[%emt 0:17:47]} Ne6 {[%emt 0:01:11]} 14. O-O {[%emt 0:05:22]} Ng5 {[%emt 0:06:22]} 15. Bxd6 {[%emt 0:01:59]} Qxd6 {[%emt 0:02:53]} 16. Bf5 {[%emt 0:00:16]} Bxf5 {[%emt 0:17:06]} 17. Qxf5 {[%emt 0:01:53]} Nge4 {[%emt 0:05:56]} 18. Rfd1 {[%emt 0:14:10]} a4 {[%emt 0:14:46]} 19. Na2 {[%emt 0:05:39]} Re6 {[%emt 0:07:20]} 20. Rac1 {[%emt 0:02:10]} Qe7 {[%emt 0:11:04]} 21. Nec3 {[%emt 0:07:19]} Re8 {[%emt 0:10:34]} 22. Nxa4 {[%emt 0:02:19]} Nd7 {[%emt 0:06:50]} 23. Rc2 {[%emt 0:02:05]} Rf6 {[%emt 0:03:26]} 24. Qh5 {[%emt 0:00:37]} Nxf2 {[%emt 0:02:26]} 25. Rxf2 {[%emt 0:00:40]} Rxf2 {[%emt 0:00:10]} 26. Kxf2 {[%emt 0:00:16]} Qxe3+ {[%emt 0:00:05]} 27. Kf1 {[%emt 0:00:08]} Re6 {[%emt 0:00:11]} 0-1

[Event "91st GER-ch 2020"]
[Site "Magdeburg"]
[Date "2020.08.19"]
[Round "5.12"]
[White "Nguyen, Alex Dac-Vuong"]
[Black "Tschernatsch, Johannes"]
[Result "1/2-1/2"]
[ECO "B31"]
[WhiteElo "2366"]
[BlackElo "2241"]
[Annotator "ChessBase"]
[PlyCount "60"]
[EventDate "2020.08.16"]
[EventType "swiss"]
[EventCountry "GER"]
[SourceTitle "playchess.com"]
[Source "ChessBase"]
[SourceQuality "1"]
[TimeControl "40/5400+30:1800+30"]

1. e4 {[%emt 0:00:00]} c5 {[%emt 0:00:00]} 2. Nf3 {[%emt 0:00:00]} Nc6 {[%emt 0:00:00]} 3. Bb5 {[%emt 0:00:00]} g6 {[%emt 0:00:03]} 4. O-O {[%emt 0:00:35]} Bg7 {[%emt 0:00:07]} 5. c3 {[%emt 0:00:46]} e5 {[%emt 0:00:19]} 6. d4 {[%emt 0:01:04]} cxd4 {[%emt 0:00:07]} 7. cxd4 {[%emt 0:00:05]} exd4 {[%emt 0:00:27]} 8. Bf4 {[%emt 0:00:45]} a6 {[%emt 0:00:08]} 9. Ba4 {[%emt 0:00:16]} Nge7 {[%emt 0:00:08]} 10. Bd6 {[%emt 0:01:19]} b5 {[%emt 0:00:27]} 11. Bb3 {[%emt 0:03:49]} Bb7 {[%emt 0:00:29]} 12. Ng5 {[%emt 0:14:36]} O-O {[%emt 0:02:47]} 13. Qf3 {[%emt 0:00:21]} Qe8 {[%emt 0:02:38]} 14. Qh3 {[%emt 0:02:52]} h6 {[%emt 0:00:22]} 15. Nf3 {[%emt 0:00:05]} Na5 {[%emt 0:02:57]} 16. Nbd2 {[%emt 0:02:36]} Qd8 {[%emt 0:12:25]} 17. Rac1 {[%emt 0:10:49]} Nxb3 {[%emt 0:04:03]} 18. axb3 {[%emt 0:03:46]} Bc6 {[%emt 0:06:13]} 19. e5 {[%emt 0:03:36]} Re8 {[%emt 0:02:40]} 20. Nxd4 {[%emt 0:01:00]} Rc8 {[%emt 0:06:13]} 21. f4 {[%emt 0:13:49]} Bd5 {[%emt 0:00:59]} 22. b4 {[%emt 0:02:04]} Nc6 {[%emt 0:05:05]} 23. Qd3 {[%emt 0:03:53]} Nxd4 {[%emt 0:03:39]} 24. Qxd4 {[%emt 0:00:07]} Rxc1 {[%emt 0:00:46]} 25. Rxc1 {[%emt 0:00:05]} Qa8 {[%emt 0:00:35]} 26. Rc7 {[%emt 0:14:19]} Bxg2 {[%emt 0:05:44]} 27. Ra7 {[%emt 0:00:20]} Qc6 {[%emt 0:01:01]} 28. Rc7 {[%emt 0:00:11]} Qa8 {[%emt 0:06:10]} 29. Ra7 {[%emt 0:00:05]} Qc6 {[%emt 0:00:23]} 30. Rc7 {[%emt 0:00:06]} Qa8 {[%emt 0:00:17]} 1/2-1/2

[Event "91st GER-ch 2020"]
[Site "Magdeburg"]
[Date "2020.08.19"]
[Round "5.13"]
[White "Weber, Max"]
[Black "Ehmann, Thilo"]
[Result "0-1"]
[ECO "A34"]
[WhiteElo "2243"]
[BlackElo "2329"]
[Annotator "ChessBase"]
[PlyCount "134"]
[EventDate "2020.08.16"]
[EventType "swiss"]
[EventCountry "GER"]
[SourceTitle "playchess.com"]
[Source "ChessBase"]
[SourceQuality "1"]
[TimeControl "40/5400+30:1800+30"]

1. Nf3 {[%emt 0:00:00]} c5 {[%emt 0:00:00]} 2. c4 {[%emt 0:00:00]} Nf6 {[%emt 0:00:00]} 3. Nc3 {[%emt 0:00:12]} d5 {[%emt 0:00:00]} 4. cxd5 {[%emt 0:00:19]} Nxd5 {[%emt 0:00:05]} 5. e4 {[%emt 0:00:26]} Nb4 {[%emt 0:01:15]} 6. Bc4 {[%emt 0:00:29]} Nd3+ {[%emt 0:03:29]} 7. Ke2 {[%emt 0:00:14]} Nf4+ {[%emt 0:01:39]} 8. Kf1 {[%emt 0:00:11]} Ne6 {[%emt 0:00:43]} 9. b4 {[%emt 0:03:00]} g6 {[%emt 0:05:09]} 10. bxc5 {[%emt 0:02:11]} Bg7 {[%emt 0:00:43]} 11. Bb2 {[%emt 0:01:52]} O-O {[%emt 0:01:19]} 12. h4 {[%emt 0:02:37]} Nc6 {[%emt 0:12:57]} 13. h5 {[%emt 0:03:28]} Nxc5 {[%emt 0:02:26]} 14. d4 {[%emt 0:01:25]} Nxd4 {[%emt 0:12:31]} 15. Nd5 {[%emt 0:00:22]} Nc6 {[%emt 0:01:32]} 16. Bxg7 {[%emt 0:10:11]} Kxg7 {[%emt 0:00:16]} 17. Qc1 {[%emt 0:09:48]} g5 {[%emt 0:03:33]} 18. Qxg5+ {[%emt 0:15:48]} Kh8 {[%emt 0:00:13]} 19. h6 {[%emt 0:04:51]} Ne6 {[%emt 0:04:56]} 20. Qe3 {[%emt 0:03:19]} f6 {[%emt 0:01:44]} 21. Rd1 {[%emt 0:04:39]} Nc7 {[%emt 0:17:41]} 22. Be2 {[%emt 0:08:04]} Bd7 {[%emt 0:06:04]} 23. Nd4 {[%emt 0:14:07]} Nxd4 {[%emt 0:04:19]} 24. Qxd4 {[%emt 0:00:37]} Nxd5 {[%emt 0:05:52]} 25. exd5 {[%emt 0:00:24]} Qb6 {[%emt 0:02:53]} 26. Qe4 {[%emt 0:01:57]} Qd6 {[%emt 0:00:24]} 27. Rh4 {[%emt 0:02:22]} f5 {[%emt 0:01:47]} 28. Qd4+ {[%emt 0:02:46]} Rf6 {[%emt 0:00:40]} 29. g3 {[%emt 0:03:05]} Kg8 {[%emt 0:00:45]} 30. Qe3 {[%emt 0:01:09]} Raf8 {[%emt 0:01:30]} 31. Qf4 {[%emt 0:03:00]} Qxf4 {[%emt 0:02:06]} 32. gxf4 {[%emt 0:00:32]} Rd6 {[%emt 0:00:26]} 33. Rd3 {[%emt 0:01:49]} Rff6 {[%emt 0:01:00]} 34. Rdh3 {[%emt 0:00:46]} Kf8 {[%emt 0:00:24]} 35. Bc4 {[%emt 0:00:15]} a5 {[%emt 0:00:39]} 36. a3 {[%emt 0:00:55]} b6 {[%emt 0:01:13]} 37. Rh5 {[%emt 0:00:17]} Be8 {[%emt 0:02:01]} 38. Rg5 {[%emt 0:00:37]} Bf7 {[%emt 0:00:36]} 39. Rd3 {[%emt 0:00:41]} Rxh6 {[%emt 0:01:09]} 40. Rxf5 {[%emt 0:00:17]} Rhf6 {[%emt 0:00:13]} 41. Rxf6 {[%emt 0:02:13]} Rxf6 {[%emt 0:00:23]} 42. Rd4 {[%emt 0:02:56]} Ke8 {[%emt 0:02:43]} 43. Bb5+ {[%emt 0:04:21]} Kd8 {[%emt 0:00:33]} 44. Ke2 {[%emt 0:00:41]} Rd6 {[%emt 0:03:55]} 45. Bc4 {[%emt 0:04:22]} e6 {[%emt 0:00:35]} 46. Ke3 {[%emt 0:00:49]} exd5 {[%emt 0:00:12]} 47. f5 {[%emt 0:00:43]} Ke7 {[%emt 0:01:04]} 48. Bb3 {[%emt 0:00:32]} Kf6 {[%emt 0:01:28]} 49. Kf4 {[%emt 0:00:09]} Rc6 {[%emt 0:01:13]} 50. Rd3 {[%emt 0:01:52]} h5 {[%emt 0:05:02]} 51. Bxd5 {[%emt 0:03:35]} Rd6 {[%emt 0:04:37]} 52. Be4 {[%emt 0:00:19]} Rxd3 {[%emt 0:00:18]} 53. Bxd3 {[%emt 0:00:07]} Be8 {[%emt 0:00:39]} 54. Kg3 {[%emt 0:06:56]} b5 {[%emt 0:14:15]} 55. Kh4 {[%emt 0:00:56]} b4 {[%emt 0:00:34]} 56. axb4 {[%emt 0:00:08]} axb4 {[%emt 0:00:03]} 57. Bc2 {[%emt 0:02:44]} Bf7 {[%emt 0:00:29]} 58. f4 {[%emt 0:01:00]} Be8 {[%emt 0:00:25]} 59. Bb1 {[%emt 0:03:56]} b3 {[%emt 0:01:52]} 60. Bd3 {[%emt 0:00:10]} b2 {[%emt 0:00:44]} 61. Bb1 {[%emt 0:00:07]} Bf7 {[%emt 0:00:13]} 62. Bc2 {[%emt 0:01:03]} Bb3 {[%emt 0:00:07]} 63. Bd3 {[%emt 0:00:29]} Bd1 {[%emt 0:00:05]} 64. Be4 {[%emt 0:00:08]} Bg4 {[%emt 0:00:07]} 65. Bb1 {[%emt 0:00:06]} Bxf5 {[%emt 0:00:07]} 66. Ba2 {[%emt 0:00:06]} Bg6 {[%emt 0:00:21]} 67. f5 {[%emt 0:00:51]} Kxf5 {[%emt 0:00:06]} 0-1

[Event "91st GER-ch 2020"]
[Site "Magdeburg"]
[Date "2020.08.19"]
[Round "5.14"]
[White "Voege, Tobias"]
[Black "Hundack, Rolf"]
[Result "1-0"]
[ECO "E21"]
[WhiteElo "2326"]
[BlackElo "2126"]
[Annotator "ChessBase"]
[PlyCount "95"]
[EventDate "2020.08.16"]
[EventType "swiss"]
[EventCountry "GER"]
[SourceTitle "playchess.com"]
[Source "ChessBase"]
[SourceQuality "1"]
[TimeControl "40/5400+30:1800+30"]

1. d4 {[%emt 0:00:00]} Nf6 {[%emt 0:00:00]} 2. c4 {[%emt 0:00:00]} e6 {[%emt 0:00:49]} 3. Nc3 {[%emt 0:00:00]} Bb4 {[%emt 0:00:27]} 4. Nf3 {[%emt 0:00:13]} O-O {[%emt 0:00:43]} 5. Bg5 {[%emt 0:00:04]} h6 {[%emt 0:00:31]} 6. Bh4 {[%emt 0:00:07]} c5 {[%emt 0:00:44]} 7. e3 {[%emt 0:00:07]} cxd4 {[%emt 0:01:08]} 8. exd4 {[%emt 0:00:20]} d5 {[%emt 0:00:58]} 9. Rc1 {[%emt 0:01:22]} Nc6 {[%emt 0:02:18]} 10. cxd5 {[%emt 0:11:53]} exd5 {[%emt 0:02:53]} 11. Be2 {[%emt 0:00:35]} g5 {[%emt 0:01:59]} 12. Bg3 {[%emt 0:00:17]} Ne4 {[%emt 0:01:22]} 13. Ne5 {[%emt 0:19:36]} Qa5 {[%emt 0:28:03]} 14. O-O {[%emt 0:17:48]} Bxc3 {[%emt 0:23:23]} 15. bxc3 {[%emt 0:12:35]} Nxc3 {[%emt 0:07:50]} 16. Qe1 {[%emt 0:18:45]} Nxe2+ {[%emt 0:04:58]} 17. Qxe2 {[%emt 0:00:05]} Nxd4 {[%emt 0:01:30]} 18. Qh5 {[%emt 0:00:35]} Qa6 {[%emt 0:03:33]} 19. Rfe1 {[%emt 0:00:28]} Nf5 {[%emt 0:05:24]} 20. Nxf7 {[%emt 0:06:37]} Qf6 {[%emt 0:08:41]} 21. Ne5 {[%emt 0:07:05]} Nxg3 {[%emt 0:01:18]} 22. hxg3 {[%emt 0:01:05]} Bf5 {[%emt 0:01:25]} 23. Rcd1 {[%emt 0:01:07]} Rad8 {[%emt 0:00:40]} 24. Qf3 {[%emt 0:00:09]} Bh7 {[%emt 0:00:40]} 25. Qe3 {[%emt 0:00:32]} a6 {[%emt 0:00:12]} 26. Rd2 {[%emt 0:00:45]} Rfe8 {[%emt 0:00:38]} 27. Ng4 {[%emt 0:00:43]} Rxe3 {[%emt 0:00:50]} 28. Nxf6+ {[%emt 0:00:05]} Kf7 {[%emt 0:00:03]} 29. Rxe3 {[%emt 0:00:32]} Kxf6 {[%emt 0:00:01]} 30. Rb3 {[%emt 0:00:23]} b5 {[%emt 0:00:33]} 31. a4 {[%emt 0:00:08]} bxa4 {[%emt 0:00:32]} 32. Rb6+ {[%emt 0:00:08]} Ke5 {[%emt 0:00:57]} 33. Rxh6 {[%emt 0:01:14]} Bf5 {[%emt 0:00:44]} 34. Rxa6 {[%emt 0:00:55]} Bd7 {[%emt 0:00:19]} 35. f3 {[%emt 0:00:31]} Rb8 {[%emt 0:00:16]} 36. Kf2 {[%emt 0:00:31]} Rb3 {[%emt 0:00:33]} 37. f4+ {[%emt 0:00:30]} gxf4 {[%emt 0:00:30]} 38. gxf4+ {[%emt 0:00:04]} Ke4 {[%emt 0:00:30]} 39. Rd6 {[%emt 0:00:16]} Bb5 {[%emt 0:00:57]} 40. R6xd5 {[%emt 0:00:20]} Bd3 {[%emt 0:00:30]} 41. Ra5 {[%emt 0:11:54]} a3 {[%emt 0:05:48]} 42. Ra4+ {[%emt 0:09:52]} Kf5 {[%emt 0:01:40]} 43. Kg1 {[%emt 0:01:10]} Kg4 {[%emt 0:12:29]} 44. Kh2 {[%emt 0:00:35]} Bb1 {[%emt 0:04:27]} 45. Rd5 {[%emt 0:00:27]} Rb2 {[%emt 0:03:30]} 46. Rg5+ {[%emt 0:00:22]} Kh4 {[%emt 0:00:05]} 47. Rxa3 {[%emt 0:00:15]} Bd3 {[%emt 0:01:03]} 48. Rxd3 {[%emt 0:00:30]} 1-0

[Event "91st GER-ch 2020"]
[Site "Magdeburg"]
[Date "2020.08.19"]
[Round "5.15"]
[White "Gustain, Marc"]
[Black "Trifan, Andrei Ioan"]
[Result "0-1"]
[ECO "C50"]
[WhiteElo "2173"]
[BlackElo "2249"]
[Annotator "ChessBase"]
[PlyCount "108"]
[EventDate "2020.08.16"]
[EventType "swiss"]
[EventCountry "GER"]
[SourceTitle "playchess.com"]
[Source "ChessBase"]
[SourceQuality "1"]
[TimeControl "40/5400+30:1800+30"]

1. e4 {[%emt 0:00:00]} e5 {[%emt 0:00:00]} 2. Nf3 {[%emt 0:00:00]} Nc6 {[%emt 0:01:11]} 3. Bc4 {[%emt 0:00:00]} Bc5 {[%emt 0:00:36]} 4. O-O {[%emt 0:00:36]} d6 {[%emt 0:06:21]} 5. d3 {[%emt 0:02:52]} Nf6 {[%emt 0:00:53]} 6. c3 {[%emt 0:00:22]} a6 {[%emt 0:02:00]} 7. a4 {[%emt 0:04:58]} Ba7 {[%emt 0:03:53]} 8. Re1 {[%emt 0:07:46]} h6 {[%emt 0:04:22]} 9. Be3 {[%emt 0:05:57]} Bxe3 {[%emt 0:04:03]} 10. Rxe3 {[%emt 0:02:17]} O-O {[%emt 0:01:51]} 11. Nbd2 {[%emt 0:02:59]} Re8 {[%emt 0:06:02]} 12. Nf1 {[%emt 0:04:19]} Be6 {[%emt 0:07:23]} 13. Bxe6 {[%emt 0:02:15]} Rxe6 {[%emt 0:00:50]} 14. Ng3 {[%emt 0:02:23]} d5 {[%emt 0:04:14]} 15. Qc2 {[%emt 0:06:52]} Qd7 {[%emt 0:04:29]} 16. Rd1 {[%emt 0:05:11]} Rd8 {[%emt 0:04:43]} 17. Ree1 {[%emt 0:02:46]} g6 {[%emt 0:01:04]} 18. h4 {[%emt 0:07:18]} Rd6 {[%emt 0:08:22]} 19. d4 {[%emt 0:11:11]} dxe4 {[%emt 0:05:39]} 20. Nxe4 {[%emt 0:00:26]} Nxe4 {[%emt 0:01:40]} 21. Qxe4 {[%emt 0:04:00]} exd4 {[%emt 0:01:03]} 22. Nxd4 {[%emt 0:01:01]} Nxd4 {[%emt 0:05:10]} 23. Rxd4 {[%emt 0:01:24]} Rxd4 {[%emt 0:00:38]} 24. cxd4 {[%emt 0:00:49]} c6 {[%emt 0:02:24]} 25. Qf4 {[%emt 0:09:16]} Qxd4 {[%emt 0:03:14]} 26. Qxh6 {[%emt 0:00:40]} Qxa4 {[%emt 0:02:39]} 27. g3 {[%emt 0:08:09]} Rd1 {[%emt 0:05:00]} 28. Qe3 {[%emt 0:00:34]} Rxe1+ {[%emt 0:02:24]} 29. Qxe1 {[%emt 0:00:03]} Qd4 {[%emt 0:00:14]} 30. Qe2 {[%emt 0:03:28]} a5 {[%emt 0:02:07]} 31. h5 {[%emt 0:01:03]} gxh5 {[%emt 0:01:03]} 32. Qxh5 {[%emt 0:00:14]} a4 {[%emt 0:00:52]} 33. Qf5 {[%emt 0:02:15]} Qxb2 {[%emt 0:04:18]} 34. Qg5+ {[%emt 0:00:50]} Qg7 {[%emt 0:00:36]} 35. Qd8+ {[%emt 0:00:09]} Qf8 {[%emt 0:00:14]} 36. Qg5+ {[%emt 0:00:09]} Qg7 {[%emt 0:00:03]} 37. Qd8+ {[%emt 0:00:11]} Kh7 {[%emt 0:02:15]} 38. Qh4+ {[%emt 0:00:11]} Qh6 {[%emt 0:00:55]} 39. Qxa4 {[%emt 0:00:14]} b5 {[%emt 0:00:54]} 40. Qe4+ {[%emt 0:00:30]} Kg8 {[%emt 0:00:48]} 41. Qd4 {[%emt 0:08:53]} Qg5 {[%emt 0:02:37]} 42. Qd7 {[%emt 0:02:33]} Qd5 {[%emt 0:04:07]} 43. Qc8+ {[%emt 0:01:33]} Kg7 {[%emt 0:00:12]} 44. f4 {[%emt 0:01:21]} b4 {[%emt 0:00:58]} 45. Qg4+ {[%emt 0:01:24]} Kf6 {[%emt 0:02:45]} 46. Qh4+ {[%emt 0:00:12]} Kf5 {[%emt 0:02:42]} 47. Qh5+ {[%emt 0:09:57]} Ke4 {[%emt 0:00:35]} 48. Qe2+ {[%emt 0:01:07]} Kd4 {[%emt 0:00:16]} 49. g4 {[%emt 0:01:14]} b3 {[%emt 0:00:25]} 50. g5 {[%emt 0:01:51]} Kc3 {[%emt 0:03:24]} 51. Qe1+ {[%emt 0:00:41]} Qd2 {[%emt 0:00:58]} 52. Qa1+ {[%emt 0:00:22]} b2 {[%emt 0:02:58]} 53. Qa5+ {[%emt 0:01:33]} Kc2 {[%emt 0:00:37]} 54. Qa4+ {[%emt 0:01:29]} Kc1 {[%emt 0:02:44]} 0-1